{"text_format":"1","workbook":"xlsx","n_sheets":6,"sheets":["Титул","Сводные","План уч проц","Лист3","Календарный график","Перечень кабинетов"],"not_rendered":{"charts":0,"images":0,"macros":1,"external_links":1,"defined_names":25,"comments":0,"pivot_tables":0},"unopened":[],"bounds":{"document_bytes":16777216,"sheet_cells":100000,"rows_first":2000,"rows_last":500,"rows_between":2000,"halvings":0,"cell_chars":16384,"cell_head_chars":4096},"cells_cut":0,"cells_raw":0,"read":"whole","date_system":"1900"}

{"sheet":"Титул","index":0,"n_rows":31,"n_cols":47,"rows_kept":31,"cut":false,"hidden":false,"merged":[[30,26,30,29],[30,31,30,39],[16,5,16,10],[3,36,3,46],[2,36,2,45],[29,26,29,29],[29,30,29,46],[26,26,26,45],[25,26,25,45],[27,26,27,34],[27,35,27,45],[28,26,28,37],[28,44,28,46],[28,42,28,43],[28,39,28,40],[1,36,1,45],[19,9,19,36],[24,26,24,33],[24,34,24,45],[4,36,4,46],[5,37,5,38],[5,43,5,44],[11,14,11,24],[12,1,12,42],[5,40,5,42],[17,11,17,37],[13,2,13,44],[14,9,14,40],[16,11,16,37]]}
[]
[null,null,null,null,null,null,null,null,null,null,null,null,null,null,null,null,null,null,null,null,null,null,null,null,null,null,null,null,null,null,null,null,null,null,null,null,"Утверждаю:"]
[null,null,null,null,null,null,null,null,null,null,null,null,null,null,null,null,null,null,null,null,null,null,null,null,null,null,null,null,null,null,null,null,null,null,null,null,"Директор ______________"]
[null,null,null,null,null,null,null,null,null,null,null,null,null,null,null,null,null,null,null,null,null,null,null,null,null,null,null,null,null,null,null,null,null,null,null,null,"ГБОУ СПО \"МППК\""]
[null,null,null,null,null,null,null,null,null,null,null,null,null,null,null,null,null,null,null,null,null,null,null,null,null,null,null,null,null,null,null,null,null,null,null,null,"М.Н. Верхотурцев"]
[null,null,null,null,null,null,null,null,null,null,null,null,null,null,null,null,null,null,null,null,null,null,null,null,null,null,null,null,null,null,null,null,null,null,null,null,"«",7,null,"»","июня",null,null,201,null,3,"г"]
[]
[]
[]
[]
[]
[null,null,null,null,null,null,null,null,null,null,null,null,null,null,"УЧЕБНЫЙ ПЛАН"]
[null,"Государственного бюджетного образовательного учреждения среднего профессионального образования "]
[null,null,"«Мишкинский профессионально-педагогический колледж»"]
[null,null,null,null,null,null,null,null,null,"по  специальности среднего профессионального образования"]
[]
[null,null,null,null,null,262019,null,null,null,null,null,"Конструирование, моделирование и технология швейных изделий"]
[]
[]
[null,null,null,null,null,null,null,null,null,"по программе базовой подготовки"]
[]
[]
[]
[]
[null,null,null,null,null,null,null,null,null,null,null,null,null,null,null,null,null,null,null,null,null,null,null,null,null,null,"Квалификация:",null,null,null,null,null,null,null,"Технолог-конструктор"]
[]
[]
[null,null,null,null,null,null,null,null,null,null,null,null,null,null,null,null,null,null,null,null,null,null,null,null,null,null,"Форма обучения-  ",null,null,null,null,null,null,null,null,"очная"]
[null,null,null,null,null,null,null,null,null,null,null,null,null,null,null,null,null,null,null,null,null,null,null,null,null,null,"Нормативный срок обучения- ",null,null,null,null,null,null,null,null,null,null,null,null,3,null,"г",10,null,"мес"]
[null,null,null,null,null,null,null,null,null,null,null,null,null,null,null,null,null,null,null,null,null,null,null,null,null,null,"На базе",null,null,null,"основного общего образования"]
[null,null,null,null,null,null,null,null,null,null,null,null,null,null,null,null,null,null,null,null,null,null,null,null,null,null,"Профиль",null,null,null,null,"технический"]

{"sheet":"Сводные","index":1,"n_rows":12,"n_cols":11,"rows_kept":12,"cut":false,"hidden":false,"merged":[[2,7,4,7],[2,8,4,8],[3,3,4,3],[0,0,0,8],[2,0,4,0],[2,1,4,1],[2,2,4,2],[2,3,2,4],[2,5,4,5],[2,6,4,6]]}
["Сводные данные по бюджету времени (в неделях)"]
[]
["Курсы","Обучение по дисциплинам и междисциплинарным курсам","Учебная практика","Производственная практика",null,"Промежуточная аттестация","Государственная итоговая аттестация","Каникулы","Всего"]
[null,null,null,"по профилю специальности","преддипломная"]
[null,null,null,null,"(для СПО)"]
[1,2,3,4,5,6,7,8,9]
["I курс",{"$f":"I7-H7-G7-F7-E7-D7-C7","v":39},null,null,null,2,null,11,52]
["II курс",{"$f":"I8-H8-G8-F8-E8-D8-C8","v":36},4,null,null,1,null,11,52]
["III курс",28,4,8,null,2,null,10,52]
["VI курс",20,4,5,4,2,6,2,43]
["Всего",{"$f":"SUM(B7:B10)","v":123},12,13,4,7,6,34,199]
[null,null,null,null,null,null,null,null,null,null,"Удалить строку"]

{"sheet":"План уч проц","index":2,"n_rows":81,"n_cols":20,"rows_kept":81,"cut":false,"hidden":false,"merged":[[70,0,70,1],[76,0,76,6],[74,0,75,6],[8,7,11,7],[8,8,11,8],[8,5,11,5],[71,0,71,1],[2,0,7,0],[8,0,11,0],[8,1,11,1],[8,4,11,4],[8,3,11,3],[8,2,11,2],[2,2,6,4],[2,1,7,1],[6,18,6,19],[2,12,5,19],[6,5,7,5],[6,6,7,6],[6,12,6,13],[6,14,6,15],[6,16,6,17],[2,5,5,10],[6,7,6,10],[7,8,7,10],[2,11,11,11],[8,6,11,6],[8,9,11,9],[8,10,11,10],[80,8,80,11],[80,0,80,6],[74,7,80,7],[78,0,78,6],[79,0,79,6],[77,0,77,6],[74,8,74,11],[75,8,75,11],[76,8,76,11],[77,8,77,11],[78,8,78,11],[79,8,79,11]]}
[]
[null,null,null,null,null,null,null,null,null,null,null,null,null,null,null,null,null,null,"Технич"]
["   Индекс","Наименование циклов, дисциплин, профессиональных модулей, МДК, практик","Форма промежуточной аттестации",null,null,"Учебная нагрузка обучающихся (час.)",null,null,null,null,null,"Учебная и производственная практика","Распределение обязательной нагрузки по курсам и семестрам[2] (час. в семестр)"]
[]
[]
[]
[null,null,null,null,null,"максимальная","самостоятельная работа","Обязательная аудиторная",null,null,null,null,"I курс",null,"II курс",null,"III курс",null,"IV курс"]
[null,null,"З","ДЗ","Э",null,null,"всего занятий","в т. ч.",null,null,null,"1 семестр","2 семестр","3 семестр","4 семестр","5 семестр","6 семестр","7 семестр","8 семестр"]
[null,null,null,null,null,null,null,null,"лекций, уроков, семинаров","лаб. и практ. занятий","Курсовая",null,"сем.","сем.","сем.","сем.","сем.","сем.","сем.","сем."]
[null,null,null,null,null,null,null,null,null,null,null,null,17,22,17,23,16,24,16,13]
[null,null,null,null,null,null,null,null,null,null,null,null,17,22,15,21,11,17,10,10]
[null,null,null,null,null,null,null,null,null,null,null,null,"нед","нед","нед","нед","нед","нед","нед","нед"]
[1,2,3,4,5,6,7,8,9,10,11,12,13,14,15,16,17,18,19,20]
["О.00","Общеобразовательный цикл",null,null,null,null,null,{"$f":"SUM(H15:H26)","v":1404},null,null,null,null,{"$f":"SUM(M15:M26)","v":612},{"$f":"SUM(N15:N26)","v":792},{"$f":"SUM(O15:O70)/O10","v":128.70588235294119},140.08695652173913,114.125,129.58333333333334,119.25,131.38461538461539]
["ОДБ.01","Русский язык",null,null,2,null,null,{"$f":"SUM(M15:R15)","v":78},null,null,null,null,34,44]
["ОДБ.02","Литература",null,2,null,null,null,{"$f":"SUM(M16:R16)","v":117},null,null,null,null,51,66]
["ОДБ.03","Иностранный язык",null,2,null,null,null,117,null,null,null,null,51,66]
["ОДБ.04","История",null,2,null,null,null,78,null,null,null,null,34,44]
["ОДБ.05","Обществознание",null,2,null,null,null,78,null,null,null,null,34,44]
["ОДБ.06","Химия",null,2,null,null,null,78,null,null,null,null,34,44]
["ОДБ.07","Биология",null,2,null,null,null,78,null,null,null,null,34,44]
["ОДБ.08","Основы безопасности жизнедеятельности ",null,2,null,null,null,78,null,null,null,null,34,44]
["ОДБ.09","Физическая культура",null,2,null,null,null,117,null,null,null,null,51,66]
["ОДП.01","Математика",null,null,2,null,null,234,null,null,null,null,102,132]
["ОДП.02","Физика",null,null,2,null,null,195,null,null,null,null,85,110]
["ОДП.03","Информатика и ИКТ",null,2,null,null,null,156,null,null,null,null,68,88]
[null,"Всего по циклам ОПОП",null,null,null,{"$f":"F28+F33+F37","v":4536},{"$f":"G28+G33+G37","v":1512},{"$f":"H28+H33+H37","v":3024},{"$f":"I28+I33+I37","v":1068},{"$f":"J28+J33+J37","v":1956},30,{"$f":"L47","v":900},null,null,{"$f":"O28+O33+O37","v":540},{"$f":"P28+P33+P37","v":756},396,612,360,360]
["ОГСЭ.00","Общий гуманитарный и социально-экономический цикл ",null,null,null,{"$f":"SUM(F29:F32)","v":660},{"$f":"SUM(G29:G32)","v":220},440,{"$f":"SUM(I29:I32)","v":98},{"$f":"SUM(J29:J32)","v":342},null,null,null,null,{"$f":"SUM(O29:O32)","v":156},{"$f":"SUM(P29:P32)","v":84},44,68,44,44]
["ОГСЭ.01","Основы философии",null,3,null,54,{"$f":"F29-H29","v":6},{"$f":"SUM(O29:T29)","v":48},48,null,null,null,null,null,48]
["ОГСЭ.02","История",null,3,null,54,6,{"$f":"SUM(O30:T30)","v":48},48,null,null,null,null,null,48]
["ОГСЭ.03","Иностранный язык",null,8,null,{"$f":"H31+G31","v":208},36,{"$f":"SUM(O31:T31)","v":172},null,172,null,null,null,null,30,42,22,34,22,22]
["ОГСЭ.04","Физическая культура",null,"3,4,5,6,7,8",null,344,172,{"$f":"SUM(O32:T32)","v":172},2,170,null,null,null,null,30,42,22,34,22,22]
["ЕН.00","Математический и общий естественнонаучный цикл",null,null,null,{"$f":"SUM(F34:F36)","v":333},{"$f":"SUM(G34:G36)","v":111},{"$f":"SUM(H34:H36)","v":222},{"$f":"SUM(I34:I36)","v":94},{"$f":"SUM(J34:J36)","v":128},null,null,null,null,{"$f":"SUM(O34:O36)","v":60},86,76,0,0,0]
["ЕН.01","Математика",null,3,null,{"$f":"ROUNDDOWN(H34*1.5,0)","v":90},{"$f":"F34-H34","v":30},{"$f":"SUM(O34:T34)","v":60},24,36,null,null,null,null,60]
["ЕН.02","Экологические основы природопользования",null,5,null,{"$f":"ROUNDDOWN(H35*1.5,0)","v":129},{"$f":"F35-H35","v":43},{"$f":"SUM(O35:T35)","v":86},66,20,null,null,null,null,null,44,42]
["ЕН.03","Информационные технологии в профессиональной деятельности ",null,5,null,114,{"$f":"F36-H36","v":38},{"$f":"SUM(O36:T36)","v":76},4,72,null,null,null,null,null,42,34]
["П.00","Профессиональный цикл ",null,null,null,{"$f":"F38+F47","v":3543},{"$f":"G38+G47","v":1181},{"$f":"H38+H47","v":2362},{"$f":"I38+I47","v":876},{"$f":"J38+J47","v":1486},30,null,null,null,{"$f":"O38+O47","v":324},586,276,544,316,316]
["ОП.00","Общепрофессиональные дисциплины",null,null,null,{"$f":"SUM(F39:F46)","v":1101},{"$f":"SUM(G39:G46)","v":367},{"$f":"SUM(H39:H46)","v":734},{"$f":"SUM(I39:I46)","v":348},{"$f":"SUM(J39:J46)","v":386},null,null,null,null,{"$f":"SUM(O39:O46)","v":152},290,94,66,20,112]
["ОП.01","Инженерная графика",null,null,4,{"$f":"ROUNDDOWN(H39*1.5,0)","v":180},{"$f":"F39-H39","v":60},{"$f":"SUM(O39:T39)","v":120},40,80,null,null,null,null,30,90]
["ОП.02","Метрология, стандартизация и подтверждение качества",null,4,null,117,39,78,44,34,null,null,null,null,30,48]
["ОП.03","Материаловедение",null,null,5,309,103,206,104,102,null,null,null,null,60,84,62]
["ОП.04","Спецрисунок и художественная графика",null,null,6,96,{"$f":"F42-H42","v":32},64,20,44,null,null,null,null,null,null,32,32]
["ОП.05","История стилей в костюме",null,8,null,145,43,102,54,48,null,null,null,null,null,null,null,34,20,48]
["ОП.06","Правовое обеспечение профессиональной деятельности",8,null,null,{"$f":"ROUNDDOWN(H44*1.5,0)","v":96},32,{"$f":"SUM(O44:V44)","v":64},44,20,null,null,null,null,null,null,null,null,null,64]
["ОП.07","Безопасность жизнедеятельности",null,4,null,110,42,{"$f":"SUM(O45:V45)","v":68},20,48,null,null,null,null,null,68]
["ОП.08","Охрана труда",3,null,null,48,16,{"$f":"SUM(O46:T46)","v":32},22,10,null,null,null,null,32]
["ПМ.00","Профессиональные модули",null,null,null,{"$f":"F48+F53+F58+F63+F67","v":2442},814,{"$f":"H48+H53+H58+H63+H67","v":1628},{"$f":"I48+I53+I58+I63+I67","v":528},1100,30,900,{"$f":"M48+M53+M58","v":0},0,{"$f":"O48+O53+O58+O63+O67","v":172},{"$f":"P48+P53+P58+P63+P67","v":296},182,478,296,204]
["ПМ.01","Моделирование швейных изделий",null,null,"5(К)",{"$f":"SUM(F49:F50)","v":330},{"$f":"SUM(G49:G50)","v":110},220,94,126,0,{"$f":"SUM(L51:L52)","v":144},null,null,{"$f":"SUM(O49:O50)","v":118},{"$f":"SUM(P49:P50)","v":102},0,0,0,0]
["МДК.01.01","Основы художественного оформления швейного изделия",null,null,4,{"$f":"ROUNDDOWN(H49*1.5,0)","v":222},{"$f":"F49-H49","v":74},{"$f":"SUM(O49:T49)","v":148},72,76,null,null,null,null,46,102]
["МДК.01.02","Художественная обработка материалов",3,null,null,108,36,{"$f":"SUM(O50:T50)","v":72},22,50,null,null,null,null,72]
["УП.01","Учебная пратика",4,null,null,null,null,null,null,null,null,{"$f":"SUM(N51:U51)","v":72},null,null,36,36]
["ПП.01","Производственная практика",5,null,null,null,null,null,null,null,null,{"$f":"SUM(N52:U52)","v":72},null,null,null,null,72]
["ПМ.02","Конструирование швейных изделий",null,null,"7(К)",{"$f":"SUM(F54:F55)","v":291},{"$f":"SUM(G54:G55)","v":97},194,{"$f":"SUM(I54:I55)","v":76},118,30,{"$f":"SUM(L56:L57)","v":108},null,null,0,0,0,108,86,0]
["МДК.02.01","Теоретические основы конструирования швейных изделий",null,7,null,{"$f":"ROUNDDOWN(H54*1.5,0)","v":120},{"$f":"F54-H54","v":40},{"$f":"SUM(O54:T54)","v":80},28,52,null,null,null,null,null,null,null,34,46]
["МДК.02.02","Методы конструктивного моделирования швейных изделий",null,7,null,171,57,{"$f":"SUM(O55:T55)","v":114},48,66,null,null,null,null,null,null,null,74,40]
["УП.02","Учебная пратика",7,null,null,null,null,null,null,null,null,{"$f":"SUM(M56:U56)","v":72},null,null,null,null,null,null,72]
["ПП.02","Производственная практика",7,null,null,null,null,null,null,null,null,{"$f":"SUM(M57:U57)","v":36},null,null,null,null,null,null,36]
["ПМ.03","Подготовка и организация технологических процессов на швейном производстве",null,null,"5(К)",{"$f":"SUM(F59:F60)","v":465},155,{"$f":"SUM(H59:H60)","v":310},{"$f":"SUM(I59:I60)","v":158},152,null,{"$f":"L61+L62","v":108},null,null,{"$f":"O59+O60","v":54},{"$f":"P59+P60","v":194},62,0,0,0]
["МДК.03.01","Основы обработки различных видов одежды",null,null,5,{"$f":"ROUNDDOWN(H59*1.5,0)","v":384},{"$f":"F59-H59","v":128},{"$f":"SUM(O59:T59)","v":256},132,124,null,null,null,null,null,194,62]
["МДК.03.02","Оборудование швейного производства",null,3,null,{"$f":"ROUNDDOWN(H60*1.5,0)","v":81},27,{"$f":"SUM(O60:T60)","v":54},26,28,null,null,null,null,54]
["УП.03","Учебная практика",4,null,null,null,null,null,null,null,null,{"$f":"SUM(M61:U61)","v":72},null,null,36,36]
["ПП.03","Производственная практика",5,null,null,null,null,null,null,null,null,{"$f":"SUM(M62:U62)","v":36},null,null,null,null,36]
["ПМ.04","Организация работы специализированного подразделения швейного производства и управление ею ",null,null,"8(К)",{"$f":"SUM(F64)","v":306},102,{"$f":"SUM(H64)","v":204},{"$f":"SUM(I64)","v":100},104,{"$f":"SUM(K64)","v":0},{"$f":"L65+L66","v":108},{"$f":"SUM(M64)","v":0},{"$f":"SUM(N64)","v":0},{"$f":"SUM(O64)","v":0},{"$f":"SUM(P64)","v":0},{"$f":"SUM(Q64)","v":0},{"$f":"SUM(R64)","v":0},{"$f":"SUM(S64)","v":0},{"$f":"SUM(T64)","v":204}]
["МДК. 04. 01","Основы управления работами специализированного подразделения швейного производства",null,null,8,{"$f":"ROUNDDOWN(H64*1.5,0)","v":306},{"$f":"F64-H64","v":102},{"$f":"SUM(O64:T64)","v":204},100,104,null,null,null,null,null,null,null,null,null,204]
["УП.04","Учебная практика",null,null,null,null,null,null,null,null,null,{"$f":"SUM(M65:T65)","v":36},null,null,null,null,null,null,null,36]
["ПП.04","Производственная практика",8,null,null,null,null,null,null,null,null,{"$f":"SUM(M66:T66)","v":72},null,null,null,null,null,null,null,72]
["ПМ. 05","Выполнение работ по одной или нескольким профессиям рабочих, должностям служащих",null,null,"7(К)",{"$f":"F68","v":1050},{"$f":"G68","v":350},700,100,600,0,{"$f":"L69+L70","v":432},0,0,0,0,120,370,210,0]
["МДК.05.01","Портной",null,"5,6,7",null,{"$f":"ROUNDDOWN(H68*1.5,0)","v":1050},{"$f":"F68-H68","v":350},{"$f":"SUM(M68:T68)","v":700},100,600,null,null,null,null,null,null,120,370,210]
["УП.05","Учебная практика",7,null,null,null,null,null,null,null,null,{"$f":"SUM(M69:T69)","v":180},null,null,null,null,72,72,36]
["ПП.05","Производственная практика",6.7,null,null,null,null,null,null,null,null,{"$f":"SUM(M70:T70)","v":252},null,null,null,null,null,180,72]
["Всего",null,null,null,null,{"$f":"SUM(H71+G71)","v":5940},{"$f":"SUM(G37+G33+G28+G14)","v":1512},{"$f":"SUM(H37+H33+H28+H14)","v":4428},{"$f":"SUM(I37+I33+I28+I14)","v":1068},{"$f":"SUM(J37+J33+J28+J14)","v":1956},60,{"$f":"L47","v":900},{"$f":"SUM(M15:M70)","v":612},{"$f":"SUM(N15:N70)","v":792},{"$f":"O75+O77+O78","v":612},{"$f":"P75+P77+P78","v":828},{"$f":"Q75+Q77+Q78","v":576},864,576,468]
["Кол-во часов в неделю",null,null,null,null,null,null,null,null,null,null,null,{"$f":"SUM(M15:M26)/M11","v":36},{"$f":"SUM(N15:N26)/N11","v":36},{"$f":"O71/O10","v":36},{"$f":"P71/P10","v":36},36,36,36,36]
["ПДП","Преддипломная практика ",null,null,null,null,null,null,null,null,null,null,null,null,null,null,null,null,null,144]
["ГИА","Государственная итоговая аттестация",null,null,null,null,null,null,null,null,null,null,null,null,null,null,null,null,null,216]
["Консультации на учебную группу по 100 часов в год (всего 400 час.)",null,null,null,null,null,null,"Всего","дисциплин и МДК",null,null,null,{"$f":"M71-M77-M78","v":612},{"$f":"N71-N77-N78","v":792},{"$f":"O27","v":540},{"$f":"P27","v":756},396,612,360,360]
[]
["Государственная (итоговая) аттестация 6 недель (216 час)",null,null,null,null,null,null,null,"учебной практики",null,null,null,null,null,{"$f":"O61+O56+O51+O65+O69","v":72},{"$f":"P61+P56+P51+P65+P69","v":72},72,72,108,36]
["1. Программа углубленной подготовки ",null,null,null,null,null,null,null,"производст. практика/преддипломная практика",null,null,null,null,null,{"$f":"O70+O57+O52+O66+O62","v":0},{"$f":"P70+P57+P52+P66+P62","v":0},108,180,108,72]
["1.1. Дипломный проект (работа)",null,null,null,null,null,null,null,"экзаменов",null,null,null,"-",3,"-",2,4,1,2,2]
["Выполнение дипломного проекта (работы) с 18.05 по 14.06 (всего 4 нед.)",null,null,null,null,null,null,null,"диф.зачетов",null,null,null,"-",8,4,2,3,1,3,2]
["Защита дипломного проекта (работы)  с 15.06 по 28.04 (всего 2 нед.)        ",null,null,null,null,null,null,null,"зачетов",null,null,null,"-",null,2,2,2,1,3,2]

{"sheet":"Лист3","index":3,"n_rows":8,"n_cols":10,"rows_kept":8,"cut":false,"hidden":true,"merged":[[0,9,0,36]]}
[null,null,1,5]
["очная",null,2,10,"основного общего образования"]
["заочная",null,3,null,"начального профессионального образования",null,null,null,null,"по программе базовой подготовки"]
["очно-заочная",null,4,null,"среднего (полного) общего образования",null,null,null,null,"по программе углубленной подготовки"]
[null,null,5]
[null,null,6]
[null,null,0,null,null,null,null,null,null,"по  специальности среднего профессионального образования"]
[null,null,null,null,null,null,null,null,null,"по  профессии начального профессионального образования"]

{"sheet":"Календарный график","index":4,"n_rows":39,"n_cols":54,"rows_kept":39,"cut":false,"hidden":false,"merged":[[18,29,18,30],[1,9,1,46],[3,1,5,1],[3,2,3,5],[3,7,3,9],[3,11,3,14],[3,15,3,18],[3,20,3,22],[3,24,3,27],[3,28,3,31],[3,33,3,35],[3,37,3,40],[3,41,3,44],[3,46,3,48],[3,50,3,53],[18,32,18,38],[11,49,11,53],[14,3,14,27],[16,4,16,5],[16,7,16,14],[16,17,16,18],[16,20,16,28],[16,29,16,30],[16,32,16,35],[16,39,16,40],[16,42,16,48],[18,4,18,5],[18,7,18,14],[18,17,18,18],[18,20,18,28]]}
[]
[null,null,null,null,null,null,null,null,null,"Календарный график учебного процесса"]
[]
[null,"Курс","Сентябрь",null,null,null,null,"Октябрь",null,null,null,"Ноябрь",null,null,null,"Декабрь",null,null,null,null,"Январь",null,null,null,"Февраль",null,null,null,"Март",null,null,null,null,"Апрель",null,null,null,"Май",null,null,null,"Июнь",null,null,null,null,"Июль",null,null,null,"Август"]
[null,null,1,8,15,22,29,6,13,20,27,3,10,17,24,1,8,15,22,29,2,9,16,23,2,9,16,23,2,9,16,23,30,6,13,20,27,4,11,18,25,1,8,15,22,29,6,13,20,27,3,10,17,24]
[null,null,7,14,21,28,5,12,19,26,2,9,16,23,30,7,14,21,28,4,8,15,22,1,8,15,22,1,8,15,22,29,5,12,19,26,3,19,17,24,31,7,14,21,28,5,12,19,26,2,9,16,23,31]
[null,1,null,null,null,null,null,null,null,null,null,null,null,null,null,null,null,null,null,"-","-",null,null,null,null,null,null,null,null,null,null,null,null,null,null,null,null,null,null,null,null,null,null,"А","А","-","-","-","-","-","-","-","-","-"]
[null,2,null,null,null,null,null,null,null,null,null,null,null,null,null,null,null,"ОУ","ОУ","-","-",null,null,null,null,null,null,null,null,null,null,null,null,null,null,null,null,null,null,null,null,null,"А","ОУ","ОУ","-","-","-","-","-","-","-","-","-"]
[null,3,null,null,null,null,null,null,null,null,"ОУ","ОУ",null,null,null,"ПП","ПП","ПП","А","-","-",null,null,null,null,null,null,null,null,null,null,null,null,null,null,null,null,null,"ОУ","ОУ","А","ПП","ПП","ПП","ПП","ПП","-","-","-","-","-","-","-","-"]
[null,4,null,null,null,null,null,null,"ОУ","ОУ","ОУ",null,null,null,null,"ПП","ПП","ПП","А","-","-",null,null,null,null,null,null,null,null,"ОУ","ПП","ПП",null,null,"А","ПД","ПД","ПД","ПД","ИА","ИА","ИА","ИА","ИА","ИА"]
[null,null,1,2,3,4,5,6,7,8,9,10,11,12,13,14,15,16,17,18,19,20,21,22,23,24,25,26,27,28,29,30,31,32,33,34,35,36,37,38,39,40,41,42,43,44,45,46,47,48,49,50,51,52]
[]
[]
[]
[null,null,null,"Условные обозначения"]
[]
[null,null,null,null,null,null,"-","Теоретическое обучение",null,null,null,null,null,null,null,null,null,"ПП",null,"-","Производственная практика",null,null,null,null,null,null,null,null,"-",null,"-","Каникулы",null,null,null,null,null,null,"ПД",null,"-","Преддипломная практика"]
[]
[null,null,null,null,"ОУ",null,"-","Учебная практика",null,null,null,null,null,null,null,null,null,"А",null,"-","Промежуточная атестация",null,null,null,null,null,null,null,null,"ИА",null,"-","Итоговая аттестация"]
[]
[]
[]
[]
[]
[null,null,null,null,null,null,null,null,null,null,null,null,null,null,null,null,null,null,null,null,null,null,null,null,null,null,null,null,null,null,null,null,null,null,null,null,","]
[]
[]
[]
[]
[]
[]
[]
[]
[]
[]
[]
[]
[]
[null,null,null,null,null,null,null,null,null,null,null,null,null,null,null,null,null,null,null,null,null,null,null,null,null,null,null,null,null,null,null,null,null,null,null,null,","]

{"sheet":"Перечень кабинетов","index":5,"n_rows":32,"n_cols":2,"rows_kept":32,"cut":false,"hidden":false,"merged":[]}
[null,"Перечень кабинетов, лабораторий, мастерских и др. для подготовки"]
[null," по специальности СПО"]
["№","Наименование"]
[null,"Кабинеты:"]
[1,"основы философии;"]
[2,"иностранных языков;"]
[3,"математики;"]
[4,"информатики;"]
[5,"материаловедения;"]
[6,"инженерной графики;"]
[7,"безопасность жизнедеятельности;"]
[8,"метрологии, стандартизации и сертификации;"]
[9,"история стилей в костюме;"]
[10,"моделирование и художественно оформление одежды;"]
[11,"спецрисунок и художественная графика;"]
[12,"технология швейныхизделий;"]
[13,"конструирования одежды; "]
[null,"Лаборатории:"]
[1,"конструирования изделий и раскроя ткани;"]
[2,"макетирования швейных изделий;"]
[3,"компьютерной графики;"]
[4,"художественного конструкторского проектирования;"]
[6,"технологического оборудования деревообрабатывающего производства."]
[null,"Мастерские:"]
[1,"швейного производства"]
[null,"Спортивный комплекс:"]
[1,"спортивный зал;"]
[2,"открытый стадион широкого профиля с элементами полосы препятствий;"]
[3,"стрелковый тир (в любой модификации, включая электронный) или место для стрельбы"]
[null," Залы:"]
[1,"библиотека, читальный зал с выходом в сеть Интернет;"]
[2,"актовый зал"]